bitfinex-derivatives/quotes_BTCF0:USTF0_20251119
["timestamp","ask_amount","ask_price","bid_price","bid_amount"]
[1763574245739,0.3608,89413.0,89393.0,0.3608]
[1763574245943,0.00219803,89394.0,89393.0,0.4727588]
[1763574246328,0.00219803,89394.0,89379.0,0.1119751]
[1763574246329,0.36299803,89394.0,89387.0,0.3608]
[1763574246529,0.05767,89388.0,89387.0,0.3608]
[1763574246734,0.05986803,89388.0,89369.0,0.3608]
[1763574247029,0.05767,89362.0,89361.0,0.3608]
[1763574247229,0.05999285,89362.0,89361.0,0.3608]
[1763574247428,0.02813,89354.0,89353.0,0.3608]
[1763574247732,0.05767,89353.0,89345.0,0.3608]
[1763574247927,0.05986803,89353.0,89345.0,0.3608]
[1763574248132,0.00219803,89353.0,89352.0,0.05942164]
[1763574248529,0.00012482,89362.0,89361.0,0.1712789]
[1763574248733,0.00232285,89362.0,89361.0,0.5320789]
[1763574249128,0.00132285,89362.0,89361.0,0.53295615]
[1763574249334,0.00132285,89362.0,89361.0,0.42095725]
[1763574250239,0.00139171,89362.0,89361.0,0.38973725]
[1763574250538,0.00139171,89362.0,89361.0,0.00087725]
[1763574250539,0.05906171,89362.0,89361.0,0.00087725]
[1763574250739,0.05906171,89362.0,89352.0,0.00014164]
[1763574251043,6.886e-05,89362.0,89361.0,0.06015725]
[1763574251255,0.00212231,89362.0,89361.0,0.42095725]
[1763574253535,0.00212231,89362.0,89361.0,0.00087725]
[1763574254234,0.00212231,89362.0,89361.0,0.06015725]
[1763574254541,0.3608,89385.0,89369.0,0.1871288]
[1763574254737,0.00222131,89370.0,89369.0,0.54880605]
[1763574254937,0.00016786,89370.0,89369.0,0.54880605]
[1763574255137,0.00222131,89370.0,89369.0,0.54880605]
[1763574255941,0.00016786,89370.0,89369.0,0.54880605]
[1763574256236,0.00016786,89370.0,89369.0,0.43681725]
[1763574256944,0.3608,89393.0,89379.0,0.1119752]
[1763574257143,0.00205345,89392.0,89380.0,0.36167725]
[1763574257346,0.00205345,89392.0,89380.0,0.68485486]
[1763574257646,0.00205345,89392.0,89386.0,0.111967]
[1763574257837,0.00205345,89392.0,89391.0,0.00087725]
[1763574257838,0.05972345,89392.0,89391.0,0.00087725]
[1763574258148,0.05972345,89392.0,89380.0,0.36096786]
[1763574258345,0.05972345,89392.0,89381.0,0.00087725]
[1763574259051,0.00205345,89392.0,89381.0,0.02893725]
[1763574259549,0.00205345,89392.0,89391.0,0.05928]
[1763574259850,0.00205345,89392.0,89381.0,0.00087725]
[1763574260152,0.00205345,89392.0,89381.0,0.11285005]
[1763574260345,0.00205345,89392.0,89381.0,0.00087725]
[1763574260742,0.05767,89381.0,89380.0,0.00016786]
[1763574260949,0.05972345,89381.0,89380.0,0.00016786]
[1763574261342,0.00205345,89381.0,89380.0,0.00104511]
[1763574261542,0.00205345,89381.0,89380.0,0.02910511]
[1763574262055,0.00205345,89381.0,89380.0,0.06032511]
[1763574262252,0.00305345,89381.0,89380.0,0.06032511]
[1763574262751,0.06072345,89381.0,89380.0,0.00016786]
[1763574262954,0.05972345,89381.0,89361.0,0.3608]
[1763574263251,0.05972345,89381.0,89372.0,0.05928]
[1763574263252,0.1094,89380.0,89372.0,0.05928]
[1763574263450,0.05972345,89373.0,89372.0,0.00087725]
[1763574264146,0.05972345,89373.0,89361.0,0.3608]
[1763574264341,0.05972345,89373.0,89362.0,0.00087725]
[1763574264850,0.05972345,89373.0,89363.0,0.1119962]
[1763574265052,0.05972345,89373.0,89372.0,0.00087725]
[1763574266556,0.00205345,89373.0,89372.0,0.02629725]
[1763574266765,0.05240345,89373.0,89372.0,0.00087725]
[1763574267053,0.00205345,89373.0,89372.0,0.02629725]
[1763574267358,0.00205345,89373.0,89372.0,0.05123725]
[1763574267557,0.00323164,89373.0,89372.0,0.05123725]
[1763574267856,0.05458164,89373.0,89372.0,0.00087725]
[1763574268451,0.05358164,89373.0,89372.0,0.00087725]
[1763574268953,0.00323164,89373.0,89372.0,0.05123725]
[1763574269360,0.00423164,89373.0,89372.0,0.05123725]
[1763574270562,0.00217819,89373.0,89372.0,0.05123725]
[1763574270751,0.00016786,89381.0,89380.0,0.05036]
[1763574271055,0.3608,89403.0,89390.0,0.1623225]
[1763574271362,0.3608,89420.0,89406.0,0.1119422]
[1763574271653,0.00205345,89419.0,89407.0,0.00087725]
[1763574271855,0.05247,89408.0,89407.0,0.00087725]
[1763574272057,0.02811345,89408.0,89407.0,0.00087725]
[1763574272556,0.04979,89400.0,89399.0,0.00016776]
[1763574272752,0.05184345,89400.0,89399.0,0.00104501]
[1763574273560,0.00205345,89400.0,89399.0,0.05018501]
[1763574274149,0.02543345,89400.0,89399.0,0.00104501]
[1763574274759,0.05184345,89400.0,89399.0,0.00104501]
[1763574274949,0.05184345,89400.0,89399.0,0.00016776]
[1763574275260,0.05284345,89400.0,89399.0,0.00104501]
[1763574275457,0.05284345,89400.0,89390.0,0.21120351]
[1763574275458,0.02338,89384.0,89378.0,0.3608]
[1763574275661,0.04979,89384.0,89383.0,0.00087725]
[1763574275962,0.05184345,89384.0,89383.0,0.00087725]
[1763574276361,0.3608,89390.0,89389.0,0.1611038]
[1763574276661,0.00016776,89392.0,89391.0,0.04914]
[1763574276958,0.00016776,89392.0,89391.0,0.05001725]
[1763574277158,0.001,89400.0,89391.0,0.05001725]
[1763574277159,0.001,89400.0,89399.0,0.04914]
[1763574277459,0.001,89400.0,89399.0,0.05001725]
[1763574277662,0.3608,89413.0,89404.0,0.04914]
[1763574277859,0.00205345,89412.0,89404.0,0.04914]
[1763574278156,0.02543345,89412.0,89411.0,0.00087725]
[1763574278857,0.04979,89400.0,89399.0,0.00016776]
[1763574279061,0.05184345,89400.0,89399.0,0.00104501]
[1763574279553,0.02543345,89400.0,89399.0,0.00104501]
[1763574280358,0.05184345,89400.0,89399.0,0.00016776]
[1763574280562,0.02338,89386.0,89385.0,0.3608]
[1763574280863,0.38623345,89386.0,89385.0,0.00087725]
[1763574281051,0.02543345,89386.0,89385.0,0.00087725]
[1763574281251,0.00205345,89386.0,89385.0,0.00087725]
[1763574281467,0.00205345,89386.0,89385.0,0.05001725]
[1763574282566,0.02543345,89386.0,89385.0,0.00087725]
[1763574283069,0.05184345,89386.0,89385.0,0.00087725]
[1763574283268,0.04979,89378.0,89377.0,0.3608]
[1763574283565,0.05184345,89378.0,89377.0,0.36167725]
[1763574284060,0.05184345,89378.0,89377.0,0.00087725]
[1763574284264,0.02338,89368.0,89367.0,0.05991069]
[1763574284462,0.00205345,89368.0,89367.0,0.00087725]
[1763574285657,0.05184345,89368.0,89367.0,0.00087725]
[1763574286058,0.41264345,89368.0,89367.0,0.00087725]
[1763574286259,0.41264345,89368.0,89352.0,0.00014164]
[1763574286260,0.04979,89353.0,89352.0,0.00014164]
[1763574286464,0.05184345,89353.0,89352.0,0.00101889]
[1763574287261,0.05184345,89353.0,89352.0,0.00014164]
[1763574287464,0.05184345,89353.0,89352.0,0.00101889]
[1763574287954,0.05284345,89353.0,89352.0,0.00101889]
[1763574288163,0.00305345,89353.0,89352.0,0.16216899]
[1763574290069,0.001,89353.0,89352.0,0.16216899]
[1763574290371,0.00205345,89353.0,89352.0,0.16216899]
[1763574290562,0.02543345,89353.0,89352.0,0.13832899]
[1763574290968,0.02543345,89353.0,89352.0,0.11302909]
[1763574291665,0.02543345,89353.0,89352.0,0.00101889]
[1763574292068,0.05184345,89353.0,89352.0,0.00101889]
[1763574294066,0.05184345,89353.0,89340.0,0.21120351]
[1763574294067,0.04979,89338.0,89337.0,0.05991069]
[1763574294259,0.00205345,89338.0,89337.0,0.05001725]
[1763574295161,0.00214555,89338.0,89337.0,0.05001725]
[1763574296265,9.21e-05,89338.0,89337.0,0.05001725]
[1763574296664,0.3608,89357.0,89350.0,0.1120119]
[1763574296970,0.00205345,89356.0,89352.0,0.1120081]
[1763574297166,0.00205345,89356.0,89355.0,0.00087725]
[1763574297468,0.00205345,89356.0,89355.0,0.16202365]
[1763574297661,0.00210299,89356.0,89355.0,0.16202365]
[1763574297861,4.954e-05,89356.0,89355.0,0.16202365]
[1763574298074,0.3608,89376.0,89360.0,0.1611401]
[1763574298264,0.00222131,89361.0,89360.0,0.05001725]
[1763574298462,0.00222131,89361.0,89360.0,0.16201735]
[1763574298871,0.00222131,89361.0,89360.0,0.05001725]
[1763574300179,0.05201131,89361.0,89360.0,0.00087725]
[1763574300563,0.00222131,89361.0,89360.0,0.05001725]
[1763574300969,0.04979,89358.0,89343.0,0.05991069]
[1763574301272,0.00205345,89357.0,89351.0,0.05001725]
[1763574301570,0.00016786,89361.0,89356.0,0.1611451]
[1763574301774,0.00116786,89361.0,89360.0,0.16294735]
[1763574302165,0.3608,89388.0,89387.0,0.04792]
[1763574302368,0.41084345,89388.0,89387.0,0.00087725]
[1763574302872,0.41084345,89388.0,89387.0,0.04879725]
[1763574302873,0.36285345,89388.0,89387.0,0.04879725]
[1763574303064,0.41084345,89388.0,89387.0,0.00087725]
[1763574303266,0.36285345,89388.0,89387.0,0.04879725]
[1763574303464,0.00305345,89388.0,89387.0,0.04879725]
[1763574303875,0.00016786,89396.0,89395.0,0.1598762]
[1763574304171,0.00016786,89396.0,89395.0,0.40959725]
[1763574304172,0.00222131,89396.0,89395.0,0.40959725]
[1763574304475,0.00016786,89396.0,89395.0,0.40959725]
[1763574304675,0.3608,89412.0,89395.0,0.36167725]
[1763574304980,0.04799,89396.0,89395.0,0.00087725]
[1763574305279,0.05004345,89396.0,89395.0,0.00087725]
[1763574305575,0.05004345,89396.0,89383.0,0.05991069]
[1763574305576,0.11842651,89396.0,89370.0,0.01531]
[1763574305773,0.11842651,89396.0,89384.0,0.00087725]
[1763574305979,0.00205345,89396.0,89384.0,0.11284675]
[1763574306274,0.00016786,89404.0,89403.0,0.04792]
[1763574306473,0.00222131,89404.0,89403.0,0.04879725]
[1763574306779,0.3608,89423.0,89422.0,0.04792]
[1763574306968,0.00205345,89439.0,89422.0,0.00087725]
[1763574307169,0.02218,89423.0,89422.0,0.00087725]
[1763574307476,0.04799,89410.0,89409.0,0.3608]
[1763574307670,0.02423345,89410.0,89409.0,0.00087725]
[1763574307876,0.05004345,89410.0,89409.0,0.00087725]
[1763574308077,0.00205345,89410.0,89409.0,0.00087725]
[1763574308468,0.05004345,89410.0,89409.0,0.00087725]
[1763574309278,0.05004345,89410.0,89409.0,0.04879725]
[1763574309279,0.00205345,89410.0,89409.0,0.04879725]
[1763574309478,0.00205345,89410.0,89409.0,0.02402725]
[1763574310177,0.00205345,89410.0,89409.0,0.04879725]
[1763574310983,0.00205345,89410.0,89409.0,0.00087725]
[1763574310984,0.05004345,89410.0,89409.0,0.00087725]
[1763574311282,0.05004345,89410.0,89401.0,0.00016775]
[1763574311283,0.04799,89402.0,89401.0,0.00016775]
[1763574311586,0.01412,89400.0,89373.0,0.0600774]
[1763574311779,0.02218,89375.0,89374.0,0.00087725]
[1763574311980,0.08028,89391.0,89380.0,0.1119748]
[1763574312189,0.00205345,89390.0,89381.0,0.00087725]
[1763574312491,0.40879,89382.0,89367.0,0.06021032]
[1763574312788,0.05004345,89368.0,89367.0,0.00013292]
[1763574312991,0.04799,89367.0,89366.0,0.00016775]
[1763574313190,0.04799,89367.0,89324.0,0.10050202]
[1763574313191,0.02218,89338.0,89335.0,0.0600774]
[1763574313384,0.02218,89338.0,89337.0,0.00087725]
[1763574313385,0.00205345,89338.0,89337.0,0.00087725]
[1763574313689,0.06868,89361.0,89354.0,0.1120066]
[1763574313887,0.04799,89356.0,89355.0,0.00087725]
[1763574314192,0.00205345,89356.0,89355.0,0.04879725]
[1763574314383,0.02423345,89356.0,89355.0,0.00087725]
[1763574315486,0.05004345,89356.0,89355.0,0.00087725]
[1763574315785,0.04799,89348.0,89347.0,0.00016785]
[1763574315987,0.05004345,89348.0,89347.0,0.00016785]
[1763574316187,0.05004345,89348.0,89328.0,0.1120392]
[1763574316386,0.04799,89336.0,89335.0,0.00087725]
[1763574316689,0.04799,89327.0,89326.0,0.00027988]
[1763574316900,0.04799,89327.0,89304.0,0.3608]
[1763574316901,0.04799,89317.0,89313.0,0.3608]
[1763574317195,0.05004345,89317.0,89316.0,0.00097642]
[1763574317696,0.05004345,89317.0,89316.0,9.917e-05]
[1763574318081,0.00205345,89317.0,89316.0,0.04989642]
[1763574318291,0.00016794,89325.0,89324.0,0.1599652]
[1763574318591,0.00016794,89325.0,89324.0,0.16084245]
[1763574318791,0.3608,89351.0,89324.0,0.16084245]
[1763574318792,0.3608,89351.0,89335.0,0.1599514]
[1763574318997,0.00214932,89336.0,89335.0,0.52162865]
[1763574319194,0.00214932,89336.0,89335.0,0.53713865]
[1763574319583,0.00214932,89336.0,89335.0,0.36167725]
[1763574319783,0.00214932,89336.0,89335.0,0.00087725]
[1763574319784,0.05013932,89336.0,89335.0,0.00087725]
[1763574320399,0.04799,89328.0,89327.0,0.00016794]
[1763574320692,0.05004345,89328.0,89327.0,0.00104519]
[1763574320901,0.04799,89317.0,89295.0,0.3608]
[1763574321198,0.41084345,89317.0,89295.0,0.3608]
[1763574321394,0.41084345,89317.0,89304.0,0.1120702]
[1763574321594,0.41084345,89317.0,89312.0,0.1120592]
[1763574321896,0.41084345,89317.0,89295.0,0.3608]
[1763574322088,0.04799,89302.0,89301.0,0.00087725]
[1763574322293,0.05004345,89302.0,89295.0,0.3608]
[1763574322487,0.05004345,89302.0,89297.0,0.1120792]
[1763574322692,0.02218,89299.0,89286.0,0.1123725]
[1763574322892,0.00205345,89298.0,89287.0,0.00087725]
[1763574323088,0.00205345,89298.0,89294.0,0.112082]
[1763574323290,0.02423345,89298.0,89297.0,0.00087725]
[1763574323486,0.00205345,89298.0,89297.0,0.04879725]
[1763574323902,0.1120376,89331.0,89315.0,0.04792]
[1763574324086,0.4702,89332.0,89315.0,0.16085375]
[1763574324087,0.00214168,89316.0,89315.0,0.16085375]
[1763574324595,0.02432168,89316.0,89315.0,0.00087725]
[1763574324795,0.00214168,89316.0,89315.0,0.00087725]
[1763574324999,0.00214168,89316.0,89315.0,0.04320725]
[1763574325201,0.00214168,89316.0,89315.0,0.02203725]
[1763574325698,0.00214168,89316.0,89315.0,0.04320725]
[1763574326495,8.823e-05,89316.0,89315.0,0.04320725]
[1763574327488,0.00016794,89324.0,89323.0,0.1543765]
[1763574327688,0.00016794,89324.0,89323.0,0.51605375]
[1763574327892,0.4702,89343.0,89323.0,0.51605375]
[1763574327893,0.3608,89343.0,89342.0,0.1543527]
[1763574328201,0.38615345,89343.0,89342.0,0.00087725]
[1763574328500,0.40763,89343.0,89342.0,0.00087725]
[1763574329201,0.36298,89343.0,89342.0,0.04320725]
[1763574329396,0.40763,89343.0,89342.0,0.00087725]
[1763574329597,0.40763,89343.0,89334.0,0.00016794]
[1763574329598,0.04465,89335.0,89334.0,0.00016794]
[1763574329802,0.40750345,89335.0,89334.0,0.00104519]
[1763574330103,0.40750345,89335.0,89334.0,0.00016794]
[1763574330304,0.40750345,89335.0,89323.0,0.3608]
[1763574330600,0.40750345,89335.0,89323.0,0.00087725]
[1763574330601,0.04465,89324.0,89323.0,0.00087725]
[1763574330800,0.04670345,89324.0,89304.0,0.3608]
[1763574331006,0.04465,89312.0,89311.0,0.00087725]
[1763574331195,0.04680902,89312.0,89311.0,0.00087725]
[1763574331504,0.04465,89304.0,89303.0,0.00016794]
[1763574331700,0.04305,89290.0,89289.0,0.3608]
[1763574331896,0.04305,89287.0,89270.0,0.26576758]
[1763574332108,0.04518709,89287.0,89270.0,0.26576758]
[1763574332300,0.04518709,89287.0,89262.0,0.1094]
[1763574332608,0.04518709,89287.0,89277.0,0.3608]
[1763574332809,0.04518709,89287.0,89274.0,0.3608]
[1763574333012,0.04518709,89287.0,89279.0,0.1121006]
[1763574333207,0.04518709,89287.0,89274.0,0.3608]
[1763574333705,0.04518709,89287.0,89264.0,0.00014475]
[1763574333706,0.1121168,89267.0,89264.0,0.00014475]
[1763574333909,0.1121168,89267.0,89217.0,0.50167725]
[1763574333910,0.00105345,89265.0,89250.0,0.01326]
[1763574334111,0.00105345,89265.0,89251.0,0.00187725]
[1763574334308,0.1121222,89263.0,89251.0,0.00187725]
[1763574334506,0.00105345,89252.0,89251.0,0.04569725]
[1763574334901,0.3608,89267.0,89264.0,0.00094655]
[1763574335113,0.3608,89267.0,89266.0,0.04601803]
[1763574335405,0.3609043,89267.0,89266.0,0.02479803]
[1763574335912,0.3609043,89267.0,89264.0,0.00094655]
[1763574336214,0.3608,89266.0,89250.0,0.01326]
[1763574336509,0.3608,89256.0,89255.0,0.04382]
[1763574336704,0.3608,89256.0,89255.0,0.04601803]
[1763574337102,0.3608,89256.0,89250.0,0.01326]
[1763574337303,0.3608,89256.0,89250.0,0.01545803]
[1763574337510,0.3608,89255.0,89250.0,0.01545803]
[1763574337819,0.00219799,89251.0,89246.0,0.00028013]
[1763574337998,0.3608,89247.0,89221.0,0.1121745]
[1763574338202,0.3608,89229.0,89226.0,0.01326]
[1763574338399,0.00219799,89227.0,89216.0,0.01326]
[1763574338704,0.3608,89217.0,89215.0,7.981e-05]
[1763574338901,0.00219799,89216.0,89190.0,0.01326]
[1763574339201,0.3608,89207.0,89206.0,0.02361295]
[1763574339406,0.36299799,89207.0,89206.0,0.02361295]
[1763574339605,0.36299799,89207.0,89206.0,0.04483295]
[1763574339812,0.00219799,89207.0,89206.0,0.04483295]
[1763574340209,0.1122005,89201.0,89186.0,0.01326]
[1763574340409,0.36299799,89207.0,89186.0,0.01326]
[1763574340410,0.00219799,89187.0,89186.0,0.01326]
[1763574340611,0.00219799,89187.0,89173.0,0.0001011]
[1763574340916,0.3608,89175.0,89174.0,0.0233327]
[1763574341109,0.36312266,89175.0,89174.0,0.0007327]
[1763574341309,0.36312266,89175.0,89173.0,0.0001011]
[1763574341506,0.11455526,89175.0,89173.0,0.0001011]
[1763574341810,0.7216,89174.0,89173.0,0.0001011]
[1763574342013,0.72379803,89174.0,89173.0,0.0001011]
[1763574342211,0.1122413,89168.0,89166.0,0.00028038]
[1763574342413,0.00119803,89167.0,89166.0,0.00028038]
[1763574342913,0.00119803,89167.0,89166.0,0.04410038]
[1763574343112,0.00119803,89167.0,89166.0,0.00028038]
[1763574343609,0.1122506,89161.0,89138.0,0.1122788]
[1763574343806,0.3608,89152.0,89148.0,0.01326]
[1763574344012,0.0019307,89149.0,89130.0,0.1122891]
[1763574344206,0.3608,89136.0,89135.0,0.04382]
[1763574344406,0.3627307,89136.0,89135.0,0.04482]
[1763574344606,0.3627307,89136.0,89135.0,0.001]
[1763574344810,0.3627307,89136.0,89129.0,0.01326]
[1763574345902,0.3627307,89136.0,89135.0,0.04382]
[1763574346416,0.3277307,89136.0,89135.0,0.04382]
[1763574346713,0.00010498,89151.0,89143.0,0.04382]
[1763574346910,0.00010498,89151.0,89150.0,0.04382]
[1763574346911,0.00230301,89151.0,89150.0,0.04382]
[1763574347214,0.00230301,89151.0,89130.0,0.26576758]
[1763574347412,0.3608,89135.0,89134.0,0.04382]
[1763574347716,0.00219803,89135.0,89134.0,0.04382]
[1763574348102,0.00219803,89135.0,89126.0,0.3610805]
[1763574348303,0.00219803,89135.0,89126.0,0.0002805]
[1763574348502,0.00219803,89135.0,89134.0,0.04382]
[1763574348706,0.00219803,89135.0,89134.0,0.1561041]
[1763574348906,0.00016824,89139.0,89138.0,0.04382]
[1763574349104,0.3608,89155.0,89150.0,0.04382]
[1763574349313,0.00083765,89151.0,89150.0,0.00219803]
[1763574349704,0.00010498,89151.0,89150.0,0.04601803]
[1763574349921,0.3258,89155.0,89154.0,0.05708]
[1763574350103,0.3608,89181.0,89173.0,0.1122343]
[1763574350308,0.36153267,89181.0,89180.0,0.04382]
[1763574350508,0.36153267,89181.0,89180.0,0.04601803]
[1763574350705,0.3608,89201.0,89200.0,0.0226]
[1763574350909,0.36165617,89201.0,89200.0,0.02479803]
[1763574351214,0.36165617,89201.0,89200.0,0.00219803]
[1763574351713,0.36165617,89201.0,89200.0,0.02479803]
[1763574352016,0.36165617,89201.0,89200.0,0.00219803]
[1763574352513,0.36265617,89201.0,89200.0,0.04601803]
[1763574352903,0.36265617,89201.0,89200.0,0.00219803]
[1763574353107,0.36265617,89201.0,89200.0,0.04601803]
[1763574353917,0.36265617,89201.0,89200.0,0.00219803]
[1763574354308,0.36265617,89201.0,89200.0,0.02479803]
[1763574354614,0.36265617,89201.0,89200.0,0.04601803]
[1763574355209,0.37900617,89201.0,89200.0,0.00219803]
[1763574355409,0.36265617,89201.0,89200.0,0.00219803]
[1763574355916,0.1122322,89176.0,89166.0,0.3608]
[1763574356123,0.00073267,89175.0,89172.0,0.00219803]
[1763574356306,0.1121656,89229.0,89181.0,0.112224]
[1763574356619,0.1122123,89191.0,89182.0,0.00219803]
[1763574356805,0.1122148,89189.0,89182.0,0.00219803]
[1763574357010,0.00073267,89183.0,89182.0,0.04601803]
[1763574357219,0.00073267,89183.0,89182.0,0.00219803]
[1763574357405,0.01708267,89183.0,89182.0,0.00219803]
[1763574357719,0.00073267,89183.0,89182.0,0.00219803]
[1763574357915,0.36153267,89183.0,89182.0,0.00219803]
[1763574358618,0.36153267,89183.0,89182.0,0.04601803]
[1763574358915,0.36253267,89183.0,89182.0,0.04601803]
[1763574359121,0.36253267,89183.0,89182.0,0.00219803]
[1763574359516,0.36153267,89183.0,89182.0,0.00219803]
[1763574360320,0.00073267,89183.0,89182.0,0.05927803]
[1763574360514,0.1449287,89178.0,89177.0,0.00016814]
[1763574360714,0.112242,89168.0,89155.0,0.1122565]
[1763574361019,0.3608,89182.0,89157.0,0.1122549]
[1763574361020,0.1122458,89165.0,89157.0,0.1122549]
[1763574361226,0.11225,89162.0,89158.0,0.00219803]
[1763574361522,0.00073267,89158.0,89157.0,0.04382]
[1763574361728,0.00073267,89158.0,89157.0,0.02479803]
[1763574362418,0.03499267,89158.0,89157.0,0.00219803]
[1763574362618,0.00073267,89158.0,89140.0,0.112276]
[1763574362819,0.3608,89151.0,89150.0,0.04333]
[1763574363015,0.03426,89144.0,89143.0,0.3608]
[1763574363220,0.03426,89127.0,89125.0,0.00011221]
[1763574363418,0.00073267,89127.0,89108.0,0.1123168]
[1763574363623,0.00073267,89127.0,89126.0,0.04333]
[1763574364019,0.00016823,89135.0,89134.0,0.1556141]
[1763574364214,0.00012537,89144.0,89143.0,0.1556027]
[1763574364425,0.26576758,89210.0,89159.0,0.1122514]
[1763574364730,0.1122073,89195.0,89172.0,0.01321]
[1763574365022,0.00219803,89194.0,89185.0,0.21242558]
[1763574365530,0.3608,89186.0,89185.0,0.23409558]
[1763574365719,0.3608,89186.0,89181.0,0.00016814]
[1763574365720,0.03426,89182.0,89181.0,0.00016814]
[1763574366025,0.00219803,89182.0,89181.0,0.04349814]
[1763574366220,0.00219803,89182.0,89181.0,0.00016814]
[1763574367828,0.00219803,89182.0,89181.0,0.04349814]
[1763574368226,0.00219803,89182.0,89181.0,0.00016814]
[1763574368728,0.36108025,89206.0,89197.0,0.04333]
[1763574368916,0.00028025,89206.0,89197.0,0.04333]
[1763574369117,0.00028025,89206.0,89191.0,0.3608]
[1763574369118,0.00028025,89206.0,89205.0,0.1687347]
[1763574369325,0.3608,89214.0,89213.0,0.1555146]
[1763574369518,0.3608,89225.0,89224.0,0.04333]
[1763574369722,0.3608,89234.0,89233.0,0.02167]
[1763574369918,0.36308382,89234.0,89224.0,0.21242558]
[1763574370124,0.36308382,89234.0,89223.0,0.1121718]
[1763574370430,0.1121656,89229.0,89222.0,0.3608]
[1763574370728,0.1121733,89222.0,89220.0,0.00016814]
[1763574370929,0.00219803,89221.0,89220.0,0.00016814]
[1763574371141,0.00219803,89221.0,89220.0,0.02183814]
[1763574371431,0.04584803,89221.0,89220.0,0.00016814]
[1763574371617,0.12138842,89221.0,89194.0,0.3608]
[1763574371814,0.12138842,89221.0,89190.0,0.21242558]
[1763574371815,0.112207,89196.0,89190.0,0.21242558]
[1763574372018,0.3608,89210.0,89194.0,0.02167]
[1763574372019,0.00233693,89195.0,89194.0,0.02167]
[1763574372628,0.00233693,89195.0,89186.0,0.48639594]
[1763574372825,0.00233693,89195.0,89194.0,0.04433]
[1763574373127,0.00233693,89195.0,89194.0,0.40513]
[1763574373324,0.04365,89187.0,89186.0,0.00016814]
[1763574373525,0.15806543,89187.0,89186.0,0.00016814]
[1763574373736,0.1122421,89168.0,89160.0,0.01321]
[1763574373935,0.00219803,89161.0,89152.0,0.00013598]
[1763574374223,0.1122753,89141.0,89140.0,0.3608]
[1763574374428,0.00219803,89141.0,89120.0,0.0600774]
[1763574374619,0.1122952,89126.0,89120.0,0.21242558]
[1763574374816,0.00219803,89121.0,89105.0,0.1123205]
[1763574375022,0.00219803,89121.0,89099.0,0.0600774]
[1763574375023,0.00219803,89121.0,89110.0,0.1255232]
[1763574375223,0.00119803,89121.0,89120.0,0.001]
[1763574375621,0.0013217,89121.0,89120.0,0.04433]
[1763574376226,0.0449717,89121.0,89120.0,0.001]
[1763574376531,0.0013217,89121.0,89120.0,0.001]
[1763574376730,0.0013217,89121.0,89120.0,0.04433]
[1763574376926,0.0227417,89121.0,89120.0,0.001]
[1763574377120,0.0449717,89121.0,89120.0,0.001]
[1763574377529,0.0013217,89121.0,89120.0,0.04433]
[1763574378329,0.00016823,89132.0,89131.0,0.04333]
[1763574378533,0.00209893,89132.0,89131.0,0.04433]
[1763574379133,0.36289893,89132.0,89131.0,0.001]
[1763574379334,0.36298964,89132.0,89131.0,0.001]
[1763574379939,0.36298964,89132.0,89131.0,0.04433]
[1763574380134,0.00218964,89132.0,89131.0,0.04433]
[1763574380328,0.00025894,89132.0,89131.0,0.04433]
[1763574380524,0.3608,89149.0,89148.0,0.04333]
[1763574380729,0.3627307,89149.0,89148.0,0.04433]
[1763574380930,0.0019307,89149.0,89148.0,0.04433]
[1763574381130,0.3608,89167.0,89148.0,0.001]
[1763574381330,0.3608,89167.0,89166.0,0.04333]
[1763574381331,0.3627307,89167.0,89166.0,0.04333]
[1763574381635,0.36284782,89167.0,89166.0,0.04433]
[1763574381826,0.36284782,89167.0,89166.0,0.05754]
[1763574382229,0.00204782,89167.0,89166.0,0.41834]
[1763574382940,0.00016823,89175.0,89174.0,0.1555637]
[1763574383126,0.00209893,89175.0,89174.0,0.1565637]
[1763574383332,0.00016823,89175.0,89174.0,0.5173637]
[1763574383637,0.3608,89190.0,89189.0,0.02167]
[1763574383835,0.38421076,89190.0,89189.0,0.001]
[1763574384037,0.36279076,89190.0,89189.0,0.001]
[1763574385232,0.04283,89182.0,89181.0,0.00016823]
[1763574385539,0.3627307,89182.0,89181.0,0.04460823]
[1763574385735,0.3627307,89182.0,89181.0,0.00116823]
[1763574386642,0.4055607,89182.0,89181.0,0.00016823]
[1763574386834,0.4055607,89182.0,89154.0,0.36088954]
[1763574386835,0.04283,89155.0,89154.0,8.954e-05]
[1763574387031,0.04482076,89155.0,89154.0,8.954e-05]
[1763574387236,0.04482076,89155.0,89134.0,0.1096]
[1763574387237,0.1122603,89153.0,89134.0,0.1096]
[1763574387546,0.1122658,89149.0,89136.0,0.1122815]
[1763574387747,0.3608,89150.0,89137.0,0.001]
[1763574387748,0.0019307,89148.0,89137.0,0.001]
[1763574388040,0.0019307,89148.0,89147.0,0.1557077]
[1763574388240,0.0019307,89148.0,89147.0,0.001]
[1763574388436,0.0019307,89148.0,89147.0,0.04444]
[1763574389429,0.00016823,89151.0,89150.0,0.04344]
[1763574389630,0.00209893,89151.0,89150.0,0.40524]
[1763574389829,0.00209893,89151.0,89150.0,0.001]
[1763574390031,0.00209893,89151.0,89134.0,0.00116823]
[1763574390032,0.1122698,89146.0,89134.0,0.00116823]
[1763574390235,0.3608,89144.0,89135.0,0.001]
[1763574390437,0.0019307,89136.0,89135.0,0.04444]
[1763574391242,0.00016823,89151.0,89150.0,0.04344]
[1763574391442,0.00209893,89151.0,89150.0,0.001]
[1763574392942,0.00209893,89151.0,89150.0,0.04423]
[1763574393735,0.00309893,89151.0,89150.0,0.001]
[1763574393945,0.02533893,89151.0,89150.0,0.001]
[1763574394931,0.00209893,89151.0,89150.0,0.04402]
[1763574395440,6.006e-05,89155.0,89150.0,0.04402]
[1763574395441,6.006e-05,89155.0,89154.0,0.05676]
[1763574395643,0.3608,89164.0,89163.0,0.1552676]
[1763574395844,0.3608,89173.0,89172.0,0.1689962]
[1763574396055,0.0019307,89173.0,89172.0,0.1699962]
[1763574396841,0.00202024,89173.0,89172.0,0.1699962]
[1763574397042,0.00016823,89181.0,89180.0,0.1552462]
[1763574397236,0.00209893,89181.0,89180.0,0.5170462]
[1763574397432,0.1122052,89197.0,89190.0,0.1122123]
[1763574397740,0.00119823,89193.0,89190.0,0.1122123]
[1763574397946,0.00119823,89193.0,89192.0,0.00173247]
[1763574398150,0.00119823,89193.0,89192.0,0.02279247]
[1763574398343,0.00119823,89193.0,89192.0,0.00173247]
[1763574398643,0.36199823,89193.0,89192.0,0.00173247]
[1763574399442,0.1122199,89185.0,89184.0,0.00016823]
[1763574399642,0.49645813,89185.0,89184.0,0.0019007]
[1763574399845,0.51900813,89185.0,89184.0,0.0019007]
[1763574400146,0.51900813,89185.0,89184.0,0.00016823]
[1763574400341,0.36199823,89185.0,89184.0,0.00173247]
[1763574400655,0.36199823,89185.0,89175.0,0.1122313]